bitfinex/quotes_SOLUSD_20220130
["timestamp","ask_amount","ask_price","bid_price","bid_amount"]
[1643564965903,0.1,94.969,94.932,0.25]
[1643564967104,0.1,94.979,94.932,0.25]
[1643564967730,0.1,94.991,94.932,0.25]
[1643564967909,0.35,94.991,94.932,0.25]
[1643564971109,15.8,94.98,94.932,0.25]
[1643564971311,0.35,94.979,94.932,0.25]
[1643564971710,0.25,94.979,94.932,0.25]
[1643564972810,15.802,94.97,94.932,0.25]
[1643564973013,0.1,94.969,94.932,0.25]
[1643564973212,0.35,94.969,94.932,0.25]
[1643564973411,0.25,94.969,94.932,0.25]
[1643564974412,0.35,94.983,94.932,0.25]
[1643564974612,15.803,94.97,94.932,0.25]
[1643564974814,0.35,94.969,94.932,0.25]
[1643564975236,0.25,94.969,94.922,0.35]
[1643564976041,0.1,94.979,94.922,0.35]
[1643564976042,0.35,94.979,94.922,0.35]
[1643564976340,15.804,94.96,94.922,0.35]
[1643564976641,0.35,94.979,94.922,0.35]
[1643564976642,0.1,94.959,94.931,6.0]
[1643564976840,0.35,94.982,94.932,0.25]
[1643564977042,0.1,94.982,94.932,0.25]
[1643564977843,15.8,94.98,94.932,0.25]
[1643564978043,15.8,94.98,94.93,6.0]
[1643564978044,0.1,94.979,94.93,6.0]
[1643564978245,0.1,94.979,94.931,0.25]
[1643564978442,0.35,94.979,94.931,0.25]
[1643564978743,0.35,94.979,94.931,6.25]
[1643564978944,0.35,94.979,94.931,6.35]
[1643564979145,0.35,94.979,94.94,6.0]
[1643564979343,0.35,94.979,94.941,0.25]
[1643564979744,0.1,94.979,94.941,0.25]
[1643564982545,0.1,94.979,94.94,6.0]
[1643564982845,0.1,94.979,94.931,0.1]
[1643564982846,0.35,94.979,94.931,0.1]
[1643564983248,15.801,94.97,94.931,0.1]
[1643564983446,0.1,94.969,94.931,6.0]
[1643564983745,0.1,94.969,94.932,0.25]
[1643564984946,0.1,94.979,94.932,0.25]
[1643564985749,0.35,94.979,94.932,0.25]
[1643564986949,15.801,94.97,94.932,0.25]
[1643564987149,0.1,94.969,94.932,0.25]
[1643564987350,0.1,94.969,94.922,0.1]
[1643564987351,0.1,94.969,94.922,0.35]
[1643564989654,0.1,94.969,94.929,1.4306372]
[1643564989856,0.1,94.969,94.93,0.25]
[1643564990657,0.1,94.969,94.93,1.6806372]
[1643564992358,0.1,94.969,94.93,0.25]
[1643564992560,0.1,94.969,94.931,1.4306372]
[1643564992758,0.1,94.969,94.932,0.25]
[1643564992958,0.1,94.979,94.932,0.25]
[1643564993361,24.0017,94.998,94.937,1.4306372]
[1643564993560,0.1,94.997,94.938,1.4306372]
[1643564993759,0.1,94.997,94.94,6.0]
[1643564994159,35.55698333,94.997,94.941,0.25]
[1643564994360,0.1,94.996,94.941,0.25]
[1643564994562,15.799,94.99,94.941,0.25]
[1643564994764,0.1,94.989,94.941,0.25]
[1643564994963,6.0,94.98,94.941,0.25]
[1643564995162,6.0,94.98,94.933,0.25]
[1643564995361,0.25,94.979,94.932,0.25]
[1643564995761,0.25,94.985,94.931,0.25]
[1643564995963,23.3156,94.985,94.931,1.6806372]
[1643564996161,0.1,94.984,94.931,0.25]
[1643564996361,6.0,94.975,94.931,0.25]
[1643564996961,15.803,94.97,94.931,0.25]
[1643564997161,0.1,94.969,94.931,0.25]
[1643564997362,0.1,94.969,94.93,0.25]
[1643564999366,0.1,94.969,94.939,6.0]
[1643564999768,0.1,94.969,94.94,0.25]
[1643565000072,0.1,94.969,94.94,6.25]
[1643565000569,0.1,94.969,94.94,0.25]
[1643565000768,0.1,94.969,94.932,0.25]
[1643565001170,0.1,94.969,94.931,6.0]
[1643565001368,0.1,94.969,94.94,6.0]
[1643565001591,0.1,94.969,94.941,6.0]
[1643565001792,0.1,94.979,94.941,6.35]
[1643565001993,23.3156,94.985,94.941,6.35]
[1643565001994,0.1,94.984,94.942,6.0]
[1643565002193,0.1,94.984,94.942,0.1]
[1643565002394,0.1,94.984,94.941,6.25]
[1643565002596,15.801,94.97,94.941,6.25]
[1643565002793,0.1,94.969,94.941,0.25]
[1643565002994,0.1,94.984,94.951,6.0]
[1643565003393,0.1,94.998,94.952,0.25]
[1643565004396,0.1,94.998,94.958,6.0]
[1643565004594,0.1,95.008,94.96,6.0]
[1643565004794,0.35,95.008,94.961,0.25]
[1643565005395,0.25,95.008,94.961,0.25]
[1643565005597,0.1,95.009,94.961,0.25]
[1643565005797,0.1,95.025,94.961,0.25]
[1643565006000,0.1,95.025,94.968,6.0]
[1643565006402,0.1,95.029,94.972,6.0]
[1643565006597,0.1,95.029,94.976,6.0]
[1643565006797,0.1,95.029,94.977,0.25]
[1643565007400,0.1,95.029,94.98,15.792]
[1643565007600,0.1,95.029,94.99,6.0]
[1643565007800,0.1,95.029,94.991,0.25]
[1643565009002,0.1,95.036,94.991,0.25]
[1643565009201,0.35,95.036,94.991,0.25]
[1643565009401,0.35,95.036,94.991,6.25]
[1643565009601,0.35,95.036,94.991,6.35]
[1643565009801,0.35,95.036,94.991,6.25]
[1643565010803,0.35,95.036,94.991,6.35]
[1643565011002,0.35,95.036,95.0,6.0]
[1643565011202,0.35,95.036,95.001,6.0]
[1643565011403,0.35,95.036,95.001,0.35]
[1643565011606,0.35,95.036,94.991,0.35]
[1643565012306,15.792,95.03,94.991,0.35]
[1643565012503,0.1,95.029,94.991,6.0]
[1643565013004,0.1,95.029,94.992,0.25]
[1643565013205,0.35,95.036,94.992,0.25]
[1643565016308,15.791,95.03,94.992,0.25]
[1643565016506,0.1,95.029,94.992,0.25]
[1643565016709,0.1,95.029,94.982,0.35]
[1643565016906,0.1,95.029,94.991,6.0]
[1643565017107,0.1,95.029,94.982,0.35]
[1643565017607,0.35,95.029,94.982,0.35]
[1643565019108,0.1,95.029,94.991,6.0]
[1643565019310,0.1,95.029,94.992,0.25]
[1643565024008,0.1,95.036,95.0,6.0]
[1643565024208,0.1,95.051,94.992,0.35]
[1643565024409,1.45229714,95.085,94.992,23.8948]
[1643565024612,0.1,95.087,95.002,6.0]
[1643565024808,0.1,95.087,95.003,23.9837]
[1643565025010,15.785,95.07,95.02,15.785]
[1643565025208,0.1,95.069,95.021,0.1]
[1643565025410,0.1,95.069,95.021,0.35]
[1643565029814,0.1,95.069,95.011,0.35]
[1643565030010,0.1,95.069,95.02,6.0]
[1643565030415,0.1,95.069,95.021,0.25]
[1643565031313,0.1,95.069,95.021,0.35]
[1643565032013,0.1,95.069,95.021,0.1]
[1643565032418,0.1,95.069,95.03,15.784]
[1643565032619,0.1,95.079,95.04,6.0]
[1643565032817,0.25,95.079,95.04,6.0]
[1643565033216,0.25,95.079,95.01,15.07]
[1643565033217,0.25,95.079,95.02,6.0]
[1643565033419,1.45229714,95.104,95.021,23.601]
[1643565033717,15.781,95.1,95.04,15.781]
[1643565033917,0.1,95.099,95.041,0.1]
[1643565034117,0.35,95.099,95.05,6.0]
[1643565034318,0.35,95.099,95.051,0.25]
[1643565034319,0.1,95.099,95.051,0.25]
[1643565034920,0.1,95.099,95.051,0.35]
[1643565035118,0.1,95.099,95.06,6.0]
[1643565035319,0.1,95.099,95.061,0.25]
[1643565035718,0.1,95.108,95.061,0.25]
[1643565035920,0.1,95.108,95.061,0.35]
[1643565036121,0.30429543,95.306,95.07,6.0]
[1643565036122,0.1,95.123,95.07,6.0]
[1643565036322,1.45229714,95.141,95.071,0.25]
[1643565036621,47.8256,95.176,95.072,6.0]
[1643565036622,1.45229714,95.149,95.072,6.0]
[1643565036820,1.45229714,95.158,95.09,15.772]
[1643565037019,0.1,95.159,95.1,6.0]
[1643565037421,0.1,95.159,95.101,6.25]
[1643565037620,1.45229714,95.164,95.101,6.35]
[1643565037821,40.95835062,95.17,95.101,6.25]
[1643565038023,0.1,95.169,95.101,6.25]
[1643565038220,0.1,95.169,95.11,15.769]
[1643565038421,0.1,95.175,95.111,0.1]
[1643565038731,0.1,95.175,95.12,6.0]
[1643565038920,0.35,95.175,95.12,6.0]
[1643565039120,0.35,95.175,95.121,0.25]
[1643565039321,39.61403005,95.175,95.121,0.25]
[1643565039521,0.1,95.174,95.111,0.1]
[1643565039824,0.1,95.174,95.111,0.35]
[1643565040025,15.771,95.16,95.111,0.35]
[1643565040223,0.1,95.159,95.111,0.35]
[1643565040422,0.35,95.159,95.111,0.35]
[1643565040623,0.1,95.159,95.111,0.35]
[1643565042424,15.77,95.17,95.111,0.35]
[1643565042425,0.1,95.169,95.12,6.0]
[1643565042748,0.1,95.169,95.12,21.768]
[1643565042947,0.1,95.175,95.121,0.35]
[1643565043147,0.35,95.175,95.13,6.0]
[1643565043350,0.35,95.175,95.131,0.25]
[1643565043750,0.35,95.175,95.131,0.35]
[1643565043950,0.35,95.175,95.14,6.0]
[1643565044150,0.25,95.175,95.14,6.0]
[1643565044352,1.45229714,95.2,95.141,0.25]
[1643565044551,15.767,95.19,95.141,0.25]
[1643565044754,0.1,95.189,95.131,0.1]
[1643565044952,24.5651,95.189,95.121,0.1]
[1643565045154,0.1,95.188,95.13,6.0]
[1643565045355,0.1,95.188,95.131,0.25]
[1643565045654,15.768,95.18,95.131,6.25]
[1643565045853,0.1,95.179,95.131,6.35]
[1643565046053,24.5651,95.189,95.131,6.35]
[1643565046054,0.1,95.188,95.131,6.35]
[1643565046253,0.35,95.188,95.14,6.0]
[1643565046654,0.35,95.188,95.141,6.0]
[1643565046854,0.35,95.188,95.141,0.1]
[1643565047055,0.35,95.188,95.14,6.0]
[1643565047872,0.35,95.188,95.131,0.35]
[1643565048254,15.768,95.18,95.131,0.1]
[1643565048454,15.768,95.18,95.121,0.1]
[1643565048455,0.35,95.179,95.121,0.1]
[1643565048655,0.35,95.179,95.104,0.1]
[1643565048857,0.25,95.179,95.113,6.0]
[1643565049054,6.0,95.178,95.113,6.0]
[1643565049254,15.77,95.17,95.113,6.0]
[1643565049454,0.1,95.169,95.113,6.0]
[1643565049654,0.35,95.169,95.113,6.0]
[1643565049855,0.1,95.169,95.113,6.0]
[1643565050055,0.35,95.169,95.113,6.0]
[1643565050858,0.35,95.169,95.12,6.0]
[1643565051058,15.771,95.16,95.12,6.0]
[1643565051260,0.25,95.159,95.114,0.35]
[1643565051460,0.25,95.159,95.113,6.0]
[1643565051461,0.35,95.159,95.113,6.0]
[1643565051658,6.0,95.153,95.114,0.25]
[1643565051857,0.25,95.152,95.104,0.25]
[1643565052060,0.1,95.162,95.104,0.25]
[1643565052258,0.35,95.162,95.107,6.0]
[1643565052660,0.35,95.162,95.108,0.25]
[1643565053061,15.773,95.15,95.108,0.25]
[1643565053260,0.35,95.149,95.108,0.25]
[1643565053459,0.1,95.149,95.108,0.25]
[1643565053960,44.70320082,95.176,95.108,0.25]
[1643565054163,0.1,95.175,95.11,6.0]
[1643565054360,0.1,95.175,95.111,0.25]
[1643565054560,6.0,95.166,95.111,0.25]
[1643565054765,15.772,95.16,95.111,0.25]
[1643565054961,0.1,95.159,95.111,0.25]
[1643565055161,0.25,95.159,95.111,0.25]
[1643565055363,0.1,95.164,95.111,0.25]
[1643565055562,0.1,95.164,95.1,6.0]
[1643565055563,0.1,95.164,95.101,0.25]
[1643565055761,15.772,95.16,95.1,15.771]
[1643565055962,0.1,95.159,95.101,0.1]
[1643565056161,0.35,95.159,95.11,6.0]
[1643565056361,0.35,95.159,95.111,0.25]
[1643565057263,21.774,95.15,95.111,0.25]
[1643565057461,0.1,95.149,95.101,0.25]
[1643565057662,0.35,95.149,95.091,6.0]
[1643565057962,0.25,95.149,95.092,0.25]
[1643565058364,15.774,95.14,95.092,0.25]
[1643565058564,0.25,95.149,95.09,6.0]
[1643565058565,41.33003258,95.129,95.09,6.0]
[1643565058863,6.0,95.119,95.068,0.1]
[1643565059063,6.0,95.119,95.05,15.07]
[1643565059264,105.35,95.118,95.051,0.1]
[1643565059463,0.1,95.117,95.045,0.1]
[1643565059663,15.779,95.11,95.042,0.1]
[1643565059864,0.35,95.109,95.036,0.1]
[1643565060266,0.25,95.109,95.036,0.1]
[1643565060468,6.0,95.107,95.045,6.0]
[1643565060670,15.781,95.1,95.045,6.0]
[1643565060867,0.35,95.099,95.046,0.25]
[1643565061069,0.35,95.099,95.041,0.1]
[1643565061368,105.45,95.099,95.036,0.1]
[1643565061567,0.1,95.098,95.036,0.1]
[1643565062071,15.782,95.09,95.036,0.1]
[1643565062267,0.35,95.089,95.036,0.1]
[1643565062672,0.25,95.089,95.036,0.1]
[1643565063066,15.785,95.08,95.036,0.1]
[1643565063270,0.35,95.079,95.036,0.1]
[1643565063468,0.35,95.079,95.036,0.35]
[1643565063666,0.1,95.079,95.036,0.1]
[1643565063867,0.35,95.079,95.036,0.1]
[1643565064467,0.1,95.079,95.036,0.1]
[1643565064668,0.35,95.079,95.03,6.0]
[1643565064868,0.35,95.079,95.031,0.25]
[1643565065568,15.785,95.07,95.031,0.25]
[1643565065770,0.1,95.069,95.031,0.25]
[1643565066168,0.1,95.097,95.031,0.35]
[1643565066369,0.1,95.097,95.04,6.0]
[1643565066569,0.1,95.097,95.031,0.35]
[1643565066769,0.1,95.097,95.011,0.35]
[1643565066970,0.1,95.097,95.02,6.0]
[1643565067270,105.45,95.097,95.021,0.25]
[1643565067472,0.1,95.096,95.021,0.25]
[1643565067869,0.1,95.097,95.021,0.25]
[1643565068069,0.35,95.097,95.022,2.34336685]
[1643565068271,0.35,95.097,95.023,0.25]
[1643565068472,0.35,95.097,95.032,6.0]
[1643565068871,15.783,95.09,95.033,0.25]
[1643565069071,0.1,95.089,95.04,6.0]
[1643565069370,0.1,95.089,95.041,0.25]
[1643565069572,24.7586,95.118,95.044,6.0]
[1643565069771,0.1,95.117,95.045,0.25]
[1643565070373,15.779,95.11,95.05,15.78]
[1643565070573,0.1,95.109,95.06,6.0]
[1643565070775,0.1,95.109,95.061,0.25]
[1643565075996,0.1,95.117,95.071,0.25]
[1643565076394,0.1,95.117,95.07,15.777]
[1643565076612,0.1,95.117,95.071,0.1]
[1643565076812,0.1,95.117,95.071,0.35]
[1643565082916,0.1,95.117,95.08,6.0]
[1643565083115,0.1,95.117,95.071,0.35]
[1643565083718,0.35,95.117,95.071,0.35]
[1643565086419,0.35,95.117,95.08,15.775]
[1643565086619,0.35,95.117,95.081,0.1]
[1643565086819,0.35,95.117,95.081,0.35]
[1643565087821,0.35,95.117,95.071,0.35]
[1643565090022,0.35,95.117,95.08,6.0]
[1643565090224,0.35,95.117,95.08,21.775]
[1643565090422,1.45229714,95.139,95.081,0.35]
[1643565090626,1.45229714,95.143,95.081,0.25]
[1643565090824,1.45229714,95.146,95.081,0.25]
[1643565091431,15.774,95.14,95.09,15.774]
[1643565091624,0.1,95.139,95.091,0.1]
[1643565091823,0.35,95.139,95.073,0.25]
[1643565092228,0.35,95.139,95.072,6.0]
[1643565092424,0.35,95.139,95.082,6.0]
[1643565092625,24.5171,95.139,95.082,6.0]
[1643565092824,24.5171,95.139,95.083,0.25]
[1643565092825,0.1,95.138,95.083,0.25]
[1643565093829,0.1,95.138,95.081,0.35]
[1643565094031,15.775,95.13,95.081,0.35]
[1643565094230,0.1,95.129,95.081,0.35]
[1643565094430,0.35,95.129,95.081,0.35]
[1643565094630,6.25,95.129,95.074,0.35]
[1643565095032,28.6054,95.128,95.074,0.35]
[1643565095229,0.1,95.127,95.074,0.35]
[1643565095432,0.35,95.127,95.074,0.35]
[1643565095631,15.777,95.12,95.074,0.35]
[1643565095831,15.777,95.12,95.061,0.35]
[1643565095832,0.1,95.119,95.061,0.35]
[1643565096231,0.25,95.127,95.061,0.35]
[1643565096232,0.35,95.127,95.061,0.35]
[1643565096832,15.777,95.12,95.061,0.35]
[1643565097034,0.1,95.119,95.061,0.35]
[1643565097934,0.1,95.119,95.07,6.0]
[1643565098337,0.1,95.119,95.071,0.25]
[1643565098737,15.779,95.11,95.071,0.25]
[1643565098939,0.1,95.109,95.071,0.25]
[1643565099942,0.1,95.109,95.061,0.35]
[1643565100542,0.1,95.109,95.061,0.1]
[1643565100842,0.35,95.109,95.061,0.1]
[1643565101243,0.25,95.109,95.061,0.1]
[1643565101443,0.1,95.119,95.061,0.1]
[1643565101650,0.35,95.119,95.061,0.1]
[1643565101845,0.35,95.119,95.061,0.35]
[1643565102044,0.25,95.119,95.061,0.35]
[1643565102244,6.0,95.118,95.061,0.35]
[1643565102448,6.0,95.118,95.061,23.7877]
[1643565102771,0.25,95.117,95.062,0.1]
[1643565102971,15.779,95.11,95.062,0.1]
[1643565103173,0.1,95.109,95.062,0.1]
[1643565105175,0.35,95.109,95.062,0.1]
[1643565105375,0.1,95.109,95.062,0.1]
[1643565109777,0.35,95.109,95.062,0.1]
[1643565111183,0.25,95.109,95.07,15.777]
[1643565111379,0.25,95.125,95.071,0.35]
[1643565112181,15.777,95.12,95.071,0.1]
[1643565112378,15.777,95.12,95.06,15.778]
[1643565112379,23.4928,95.119,95.062,0.35]
[1643565112578,0.1,95.118,95.062,0.25]
[1643565113180,0.1,95.118,95.07,15.777]
[1643565113381,0.35,95.118,95.071,0.35]
[1643565113579,0.35,95.118,95.062,0.25]
[1643565113780,0.1,95.118,95.062,0.25]
[1643565113980,0.1,95.118,95.063,6.0]
[1643565114282,0.1,95.118,95.064,0.25]
[1643565114283,0.35,95.118,95.064,0.25]
[1643565114483,0.35,95.118,95.062,0.25]
[1643565114682,0.35,95.118,95.063,6.0]
[1643565114881,0.35,95.118,95.064,0.25]
[1643565115082,15.779,95.11,95.064,0.25]
[1643565115282,0.1,95.109,95.064,0.25]
[1643565115481,0.1,95.109,95.063,6.0]
[1643565115681,0.1,95.109,95.061,0.1]
[1643565115682,0.35,95.109,95.061,0.1]
[1643565116082,0.1,95.109,95.061,0.1]
[1643565116282,0.35,95.118,95.063,6.0]
[1643565116483,0.1,95.118,95.063,6.0]
[1643565116683,15.777,95.12,95.063,6.0]
[1643565116885,15.777,95.12,95.064,0.25]
[1643565116886,0.1,95.119,95.064,0.25]
[1643565117082,0.1,95.119,95.07,6.0]
[1643565117284,0.25,95.132,95.071,24.5366]
[1643565117483,0.25,95.132,95.072,0.1]
[1643565117683,0.25,95.132,95.072,0.35]
[1643565117883,0.25,95.132,95.08,15.775]
[1643565118082,0.25,95.132,95.081,0.1]
[1643565118283,0.25,95.132,95.081,0.35]
[1643565118483,0.1,95.135,95.082,2.34336703]
[1643565118683,1.45229714,95.151,95.09,6.0]
[1643565118883,1.45229714,95.151,95.1,15.77]
[1643565119083,1.45229714,95.154,95.11,6.0]
[1643565119285,1.45229714,95.158,95.111,0.25]
[1643565119486,1.45229714,95.16,95.111,0.25]
[1643565120087,1.45229714,95.159,95.112,6.0]
[1643565120288,1.45229714,95.159,95.113,0.25]
[1643565120487,1.45229714,95.161,95.12,6.0]
[1643565120686,1.45229714,95.161,95.121,0.25]
[1643565120887,1.45229714,95.162,95.121,0.25]
[1643565121286,1.45229714,95.163,95.121,0.25]
[1643565121487,15.771,95.16,95.121,0.25]
[1643565121686,0.1,95.159,95.121,0.25]
[1643565121887,23.5345,95.166,95.103,0.35]
[1643565121888,1.45229714,95.161,95.103,0.35]
[1643565122090,1.45229714,95.162,95.103,0.35]
[1643565122289,1.45229714,95.162,95.103,13.57]
[1643565122488,0.1,95.165,95.104,0.1]
[1643565122689,0.25,95.161,95.11,15.768]
[1643565122889,1.45229714,95.164,95.111,0.35]
[1643565123088,1.55229714,95.165,95.103,0.35]
[1643565123290,1.70229714,95.163,95.103,0.35]
[1643565123588,0.25,95.163,95.103,0.35]
[1643565124190,0.25,95.163,95.112,6.0]
[1643565124391,0.35,95.165,95.113,0.25]
[1643565126392,0.35,95.165,95.12,6.0]
[1643565126790,0.35,95.165,95.121,0.25]
[1643565127193,0.1,95.165,95.121,0.25]
[1643565127391,35.21265675,95.165,95.112,6.0]
[1643565127591,0.1,95.164,95.106,6.0]
[1643565127792,0.1,95.165,95.106,6.0]
[1643565127993,0.1,95.165,95.09,6.0]
[1643565128295,0.35,95.165,95.09,6.0]
[1643565128693,15.771,95.16,95.091,0.25]
[1643565128892,0.1,95.159,95.091,0.25]
[1643565129294,0.1,95.159,95.092,2.343591]
[1643565129497,0.35,95.165,95.092,2.443591]
[1643565129697,0.35,95.165,95.102,6.0]
[1643565129896,0.35,95.165,95.103,24.3509]
[1643565130098,0.35,95.165,95.113,6.0]
[1643565130309,0.35,95.165,95.114,0.25]
[1643565130801,0.35,95.165,95.12,15.767]
[1643565131102,0.35,95.165,95.121,0.1]
[1643565131399,0.35,95.165,95.121,0.35]
[1643565132203,0.35,95.165,95.121,0.25]
[1643565132400,0.35,95.165,95.12,6.0]
[1643565132802,0.35,95.165,95.121,0.25]
[1643565134601,0.35,95.165,95.121,0.35]
[1643565135202,0.35,95.165,95.12,0.25]
[1643565136825,0.35,95.165,95.114,0.25]
[1643565137429,0.35,95.165,95.114,0.22057117]
[1643565138627,0.1,95.165,95.114,0.22057117]
[1643565138829,0.1,95.178,95.115,2.343591]
[1643565139029,1.45229714,95.196,95.125,6.0]
[1643565139231,0.1,95.207,95.125,6.0]
[1643565139232,1.55229714,95.207,95.126,23.3192]
[1643565139429,1.55229714,95.207,95.13,6.0]
[1643565139430,0.1,95.207,95.13,6.0]
[1643565139630,0.1,95.207,95.14,15.763]
[1643565139932,0.1,95.207,95.141,0.35]
[1643565140129,0.1,95.207,95.15,6.0]
[1643565140331,0.1,95.207,95.151,0.25]
[1643565140531,0.1,95.207,95.151,6.25]
[1643565140930,0.1,95.207,95.151,6.35]
[1643565141131,0.1,95.207,95.16,6.0]
[1643565141331,0.1,95.207,95.161,6.25]
[1643565141532,0.1,95.207,95.171,6.0]
[1643565141831,0.35,95.207,95.172,0.25]
[1643565142231,0.35,95.207,95.142,0.1]
[1643565142434,45.31860362,95.207,95.142,0.1]
[1643565142631,0.1,95.206,95.131,0.25]
[1643565143631,15.765,95.2,95.131,0.25]
[1643565143832,0.35,95.199,95.131,0.35]
[1643565144032,0.1,95.199,95.131,0.35]
[1643565144234,0.35,95.199,95.131,0.35]
[1643565144434,0.35,95.199,95.131,24.6189]
[1643565144633,15.767,95.19,95.132,0.1]
[1643565144833,15.767,95.19,95.131,0.25]
[1643565144834,24.8518,95.189,95.131,0.35]
[1643565145041,0.1,95.188,95.131,0.25]
[1643565145236,0.1,95.188,95.118,0.35]
[1643565145634,15.769,95.18,95.118,0.35]
[1643565145836,0.35,95.179,95.118,0.1]
[1643565146037,0.35,95.179,95.117,6.0]
[1643565146235,6.25,95.179,95.09,6.0]
[1643565146435,37.94625628,95.178,95.09,6.0]
[1643565146635,23.082,95.177,95.091,6.0]
[1643565146835,0.1,95.176,95.091,6.0]
[1643565147041,105.1,95.169,95.091,6.0]
[1643565147337,0.35,95.168,95.092,0.25]
[1643565147540,0.25,95.168,95.1,6.0]
[1643565147736,0.25,95.168,95.101,6.0]
[1643565147936,0.25,95.168,95.101,0.35]
[1643565148136,15.773,95.16,95.101,0.25]
[1643565148340,23.7163,95.159,95.101,0.25]
[1643565148538,0.1,95.158,95.101,0.25]
[1643565149140,41.88313812,95.149,95.091,6.0]
[1643565149341,23.7255,95.148,95.092,0.25]
[1643565149541,0.1,95.147,95.092,0.25]
[1643565150144,0.1,95.147,95.1,6.0]
[1643565150341,0.1,95.147,95.101,0.25]
[1643565150641,0.1,95.147,95.092,0.25]
[1643565153449,0.35,95.147,95.092,0.25]
[1643565153646,0.35,95.147,95.1,6.0]
[1643565153847,0.1,95.147,95.101,0.25]
[1643565154048,24.8887,95.169,95.101,24.4092]
[1643565154248,15.773,95.16,95.102,0.1]
[1643565154448,0.1,95.159,95.111,6.0]
[1643565154649,0.35,95.159,95.111,6.0]
[1643565154848,0.35,95.159,95.112,0.25]
[1643565155448,15.773,95.15,95.112,0.25]
[1643565155649,0.1,95.149,95.112,0.25]
[1643565155949,0.1,95.149,95.101,0.25]
[1643565156556,0.1,95.149,95.101,6.25]
[1643565156751,0.1,95.149,95.101,6.0]
[1643565156949,0.1,95.149,95.102,0.25]
[1643565158051,0.1,95.159,95.102,0.25]
[1643565158251,0.35,95.159,95.102,0.25]
[1643565158450,0.25,95.159,95.102,0.25]
[1643565159450,0.35,95.168,95.102,0.25]